bitfinex/quotes_SOLUSD_20250108
["timestamp","ask_amount","ask_price","bid_price","bid_amount"]
[1736317347007,0.12549,196.11,196.03,0.7647892]
[1736317347222,0.12549,196.11,196.01,0.76485215]
[1736317347721,0.12549,196.11,196.02,23.776884]
[1736317347897,0.12549,196.11,196.04,23.776884]
[1736317348547,0.12549,196.11,195.98,2.56]
[1736317348548,0.12549,196.11,195.99,0.76484657]
[1736317348735,0.12549,196.07,195.99,0.76484657]
[1736317348944,0.12549,196.07,196.0,23.776884]
[1736317349222,0.12549,196.07,196.01,0.76499281]
[1736317350010,0.12549,196.07,196.02,23.776884]
[1736317350338,0.12549,196.07,196.03,0.76494077]
[1736317350536,0.12549,196.07,196.04,23.776884]
[1736317350746,0.12549,196.07,196.0,0.76490017]
[1736317350924,0.12549,196.07,195.97,0.7650717]
[1736317351115,1.5412,196.08,195.94,0.76513254]
[1736317351116,0.12549,196.05,195.94,0.76513254]
[1736317351743,0.12549,196.05,195.95,23.776884]
[1736317351943,0.12549,196.05,195.96,0.76512111]
[1736317352325,0.12549,196.05,195.97,23.776884]
[1736317353627,0.12549,196.05,195.99,23.776884]
[1736317354015,0.12549,196.02,195.95,23.776884]
[1736317354215,0.12549,196.02,195.95,0.76519393]
[1736317354538,0.12549,196.02,195.91,0.76524543]
[1736317355113,0.12549,196.02,195.92,23.776884]
[1736317355312,6.5901,196.06,195.94,23.776884]
[1736317355544,0.12549,196.05,195.96,23.776884]
[1736317355713,0.12549,196.05,195.98,23.776884]
[1736317355910,0.12549,196.05,196.0,23.776884]
[1736317356116,0.12549,196.05,196.02,23.776884]
[1736317356316,1.5412,196.08,196.04,23.776884]
[1736317356515,6.2383,196.11,195.97,7.33152372]
[1736317356753,0.12549,196.1,195.97,7.33152372]
[1736317356917,0.12549,196.1,195.98,23.776884]
[1736317357119,0.12549,196.1,196.0,23.776884]
[1736317357323,0.12549,196.1,196.02,23.776884]
[1736317357526,0.12549,196.1,196.04,23.776884]
[1736317358068,0.12549,196.1,195.98,0.76491059]
[1736317358069,0.12549,196.07,195.98,0.76491059]
[1736317358359,0.12549,196.07,195.95,0.76508999]
[1736317359343,0.12549,196.07,195.97,23.776884]
[1736317359643,0.12549,196.05,195.97,23.776884]
[1736317359855,0.12549,196.03,195.99,23.776884]
[1736317360235,0.12549,196.03,195.94,23.776884]
[1736317360431,0.12549,196.03,195.96,23.776884]
[1736317360630,0.12549,196.03,195.98,23.776884]
[1736317360833,0.12549,196.03,196.0,23.776884]
[1736317361145,2.56,196.04,196.02,23.776884]
[1736317361323,1.5778,196.06,196.02,23.776884]
[1736317361960,0.12549,196.05,195.97,20.0]
[1736317362255,0.12549,196.05,195.99,23.776884]
[1736317362429,0.12549,196.05,196.01,23.776884]
[1736317362632,0.12549,196.05,196.03,23.776884]
[1736317362830,7.8161,196.11,195.99,23.776884]
[1736317363045,10.3761,196.11,196.01,23.776884]
[1736317363243,0.12549,196.1,196.03,23.776884]
[1736317364156,0.12549,196.1,196.05,23.776884]
[1736317364451,0.12549,196.1,195.99,64.08980435]
[1736317364650,0.12549,196.1,196.01,23.776884]
[1736317364886,0.12549,196.1,196.03,23.776884]
[1736317365086,2.56,196.15,196.05,23.776884]
[1736317365284,2.56,196.15,196.07,23.776884]
[1736317365469,0.12549,196.14,196.09,23.776884]
[1736317365989,0.12549,196.14,196.11,23.776884]
[1736317366352,1.5778,196.16,196.13,23.776884]
[1736317366557,1.5778,196.16,196.07,0.76451298]
[1736317366752,0.12549,196.15,196.07,0.76451298]
[1736317366990,0.12549,196.15,196.05,0.76472171]
[1736317367196,0.12549,196.15,196.03,0.7648086]
[1736317367364,0.12549,196.15,196.04,20.0]
[1736317367565,0.12549,196.15,196.05,0.76479286]
[1736317368494,0.12549,196.15,196.06,23.776884]
[1736317369591,0.12549,196.15,196.08,23.776884]
[1736317369897,0.12549,196.15,196.02,0.76472679]
[1736317370102,0.62549,196.15,196.03,23.776884]
[1736317370258,0.62549,196.15,196.05,23.776884]
[1736317370760,0.12549,196.1,196.01,0.76484085]
[1736317371381,0.12549,196.1,196.02,23.776884]
[1736317371594,0.12549,196.1,196.03,0.76490531]
[1736317371764,0.12549,196.1,196.01,23.776884]
[1736317371961,0.12549,196.08,196.01,23.776884]
[1736317372199,0.12549,196.06,195.97,0.76504512]
[1736317372402,0.12549,196.06,195.91,31.18232035]
[1736317372403,0.12549,196.06,195.95,1.093288]
[1736317372575,0.12549,196.06,195.96,24.10500815]
[1736317372898,0.12549,196.06,195.98,23.776884]
[1736317373603,0.12549,196.06,195.97,0.76508021]
[1736317374099,0.12549,196.06,195.98,23.776884]
[1736317374480,0.12549,196.06,196.0,23.776884]
[1736317374668,0.12549,196.06,195.96,20.0]
[1736317374872,0.12549,196.06,195.97,0.7650402]
[1736317376879,1.6086,196.07,195.98,23.776884]
[1736317377097,1.6086,196.07,195.99,0.76490979]
[1736317377400,1.6086,196.07,196.0,23.776884]
[1736317377699,1.6086,196.07,196.02,23.776884]
[1736317378592,1.6086,196.07,196.04,23.776884]
[1736317378792,1.6086,196.07,195.98,23.776884]
[1736317378968,1.6086,196.07,196.0,23.776884]
[1736317379167,1.6523,196.13,196.02,23.776884]
[1736317379365,1.6523,196.13,196.04,23.776884]
[1736317379598,1.6523,196.13,196.05,0.76480094]
[1736317379793,0.12549,196.12,196.06,23.776884]
[1736317380313,0.12549,196.12,196.08,23.776884]
[1736317380490,1.6523,196.13,196.1,23.776884]
[1736317381073,1.6523,196.13,195.93,7.99472031]
[1736317381074,0.12549,196.1,195.93,7.99472031]
[1736317381304,0.12549,196.08,195.96,0.7650417]
[1736317381725,0.62549,196.08,195.96,0.7650417]
[1736317381888,0.12549,196.08,195.96,0.7650417]
[1736317382277,0.12549,196.08,195.97,23.776884]
[1736317382477,0.12549,196.08,195.98,0.76508016]
[1736317382702,0.12549,196.08,195.96,23.776884]
[1736317382917,0.12549,196.08,195.97,0.76503065]
[1736317383810,0.12549,196.09,195.97,0.76503065]
[1736317384101,0.12549,196.07,195.97,0.76503065]
[1736317384516,6.17689,196.05,195.93,0.76509085]
[1736317385116,6.17689,196.05,195.94,23.776884]
[1736317385310,6.17689,196.05,195.96,23.776884]
[1736317385615,6.17689,196.05,195.92,0.76520658]
[1736317385616,0.12549,196.03,195.92,0.76520658]
[1736317385981,0.12549,196.03,195.93,23.776884]
[1736317386305,0.12549,196.04,195.94,0.76524833]
[1736317387106,0.12549,196.04,195.96,23.776884]
[1736317387686,20.0,196.02,195.92,0.7652052]
[1736317387887,2.68549,196.01,195.92,0.7652052]
[1736317389311,2.68549,196.01,195.93,23.776884]
[1736317389512,2.68549,196.01,195.93,24.54216443]
[1736317389715,2.68549,196.01,195.87,19.2209]
[1736317389716,2.68549,196.01,195.88,0.76529947]
[1736317390091,2.68549,196.01,195.89,23.776884]
[1736317390394,2.68549,196.01,195.91,23.776884]
[1736317390613,2.68549,196.01,195.93,23.776884]
[1736317390911,2.68549,196.01,195.88,0.76533662]
[1736317391417,3.18549,196.01,195.88,0.76533662]
[1736317391615,0.12549,195.99,195.88,0.76533662]
[1736317391822,0.12549,195.94,195.84,0.76546521]
[1736317392000,2.68549,195.94,195.84,0.76546521]
[1736317392317,0.12549,195.94,195.84,0.76546521]
[1736317392622,2.56,195.93,195.84,0.76546521]
[1736317392838,2.56,195.93,195.86,23.776884]
[1736317392998,2.56,195.93,195.88,23.776884]
[1736317393200,2.56,195.93,195.9,23.776884]
[1736317393400,2.56,195.93,195.84,0.7654726]
[1736317393401,0.12549,195.92,195.84,0.7654726]
[1736317394199,0.12549,195.9,195.84,0.7654726]
[1736317394398,0.12549,195.85,195.78,0.76557896]
[1736317395218,6.0224,195.89,195.78,0.76557896]
[1736317395402,8.5824,195.89,195.78,0.76557896]
[1736317395607,0.12549,195.88,195.78,20.76557896]
[1736317396015,0.12549,195.88,195.79,23.776884]
[1736317396205,0.12549,195.88,195.81,23.776884]
[1736317396601,0.12549,195.88,195.78,20.0]
[1736317396902,0.12549,195.88,195.79,0.76577923]
[1736317397298,0.12549,195.88,195.8,23.776884]
[1736317397506,0.12549,195.88,195.81,0.76575317]
[1736317399004,21.652,195.91,195.81,0.76575317]
[1736317399229,0.12549,195.9,195.81,0.76575317]
[1736317401625,1.652,195.91,195.83,23.776884]
[1736317401811,1.652,195.91,195.85,23.776884]
[1736317402012,1.652,195.91,195.87,23.776884]
[1736317402211,1.652,195.91,195.89,23.776884]
[1736317402524,1.652,195.91,195.84,23.776884]
[1736317402721,1.652,195.91,195.86,23.776884]
[1736317402926,1.652,195.91,195.88,23.776884]
[1736317403530,1.652,195.91,195.83,23.776884]
[1736317403727,1.652,195.91,195.85,23.776884]
[1736317404026,1.652,195.91,195.87,23.776884]
[1736317404524,1.652,195.91,195.89,23.776884]
[1736317404700,22.56,195.95,195.83,23.776884]
[1736317404899,22.56,195.95,195.85,23.776884]
[1736317405099,0.12549,195.94,195.87,23.776884]
[1736317405296,0.12549,195.94,195.84,20.76544469]
[1736317405522,8.17339,195.92,195.82,0.76558504]
[1736317405723,0.12549,195.9,195.76,0.7658203]
[1736317405928,0.12549,195.9,195.78,20.0]
[1736317406151,0.12549,195.88,195.76,0.7658203]
[1736317406300,0.12549,195.86,195.72,0.76595858]
[1736317406708,0.12549,195.86,195.74,20.0]
[1736317406932,0.12549,195.86,195.76,23.776884]
[1736317407126,0.12549,195.86,195.76,0.76587384]
[1736317407306,0.12549,195.84,195.76,0.76587384]
[1736317407624,20.0,195.89,195.78,48.86894058]
[1736317407833,1.6277,195.9,195.79,49.63458838]
[1736317408031,0.12549,195.89,195.79,49.63458838]
[1736317408726,0.12549,195.89,195.79,57.47698838]
[1736317408931,1.6277,195.9,195.81,23.776884]
[1736317409105,1.6277,195.9,195.83,23.776884]
[1736317409303,1.6277,195.9,195.85,23.776884]
[1736317409499,1.6277,195.9,195.87,23.776884]
[1736317409810,1.6277,195.9,195.82,23.776884]
[1736317410014,1.6277,195.9,195.84,23.776884]
[1736317410323,1.6277,195.9,195.86,23.776884]
[1736317410706,1.6277,195.9,195.88,23.776884]
[1736317411231,1.5581,195.95,195.83,23.776884]
[1736317411428,1.5581,195.95,195.85,23.776884]
[1736317411630,1.5581,195.95,195.87,23.776884]
[1736317411818,1.5581,195.95,195.86,0.76534994]
[1736317411819,0.12549,195.94,195.86,0.76548255]
[1736317412831,0.12549,195.94,195.87,23.776884]
[1736317413215,20.62549,195.94,195.81,0.76550335]
[1736317413605,20.12549,195.94,195.82,43.776884]
[1736317413827,20.12549,195.94,195.84,23.776884]
[1736317414031,20.12549,195.94,195.86,23.776884]
[1736317414212,20.12549,195.94,195.87,0.76556442]
[1736317414528,2.56,195.93,195.88,23.776884]
[1736317414830,2.56,195.93,195.84,23.776884]
[1736317415036,2.56,195.93,195.86,23.776884]
[1736317415333,2.56,195.93,195.88,23.776884]
[1736317415730,2.56,195.93,195.84,23.776884]
[1736317416030,2.56,195.93,195.86,23.776884]
[1736317416534,0.12549,195.92,195.81,0.7655879]
[1736317416749,0.12549,195.9,195.76,0.76582077]
[1736317417240,0.12549,195.9,195.78,20.0]
[1736317417541,0.12549,195.86,195.76,0.76582077]
[1736317417713,0.12549,195.86,195.75,23.776884]
[1736317417714,2.56,195.85,195.75,23.776884]
[1736317417915,2.56,195.85,195.77,23.776884]
[1736317418116,2.56,195.85,195.79,23.776884]
[1736317418708,2.56,195.85,195.78,0.76585872]
[1736317419146,2.56,195.85,195.79,23.776884]
[1736317419848,0.12549,195.84,195.73,0.76586883]
[1736317420713,0.12549,195.84,195.74,24.54281957]
[1736317420928,0.12549,195.84,195.75,23.776884]
[1736317421184,0.12549,195.84,195.77,23.776884]
[1736317421456,0.12549,195.84,195.79,23.776884]
[1736317421739,0.12549,195.84,195.74,20.76593689]
[1736317422110,0.12549,195.84,195.75,23.776884]
[1736317424324,0.12549,195.84,195.77,23.776884]
[1736317424847,0.12549,195.84,195.7,0.76600715]
[1736317425023,0.12549,195.82,195.7,0.76600715]
[1736317425226,20.12549,195.82,195.7,0.76600715]
[1736317425744,0.12549,195.78,195.7,0.76600715]
[1736317425924,0.12549,195.76,195.65,0.76624065]
[1736317426241,0.62549,195.76,195.64,0.76630613]
[1736317426413,1.5349,195.79,195.65,25.09205658]
[1736317426620,2.56,195.78,195.67,23.776884]
[1736317426938,2.56,195.78,195.69,23.776884]
[1736317427137,0.12549,195.77,195.71,23.776884]
[1736317427335,0.12549,195.78,195.71,23.776884]
[1736317428155,0.12549,195.78,195.72,23.776884]
[1736317429032,0.12549,195.78,195.71,0.76615002]
[1736317429231,0.12549,195.78,195.67,0.76616649]
[1736317429543,0.12549,195.78,195.68,23.776884]
[1736317429725,0.12549,195.78,195.7,23.776884]
[1736317429926,0.12549,195.78,195.72,23.776884]
[1736317430128,0.12549,195.78,195.68,23.776884]
[1736317430434,0.12549,195.78,195.69,0.76614078]
[1736317430630,0.12549,195.78,195.7,23.776884]
[1736317430831,3.96017408,195.79,195.72,23.776884]
[1736317431225,3.96017408,195.79,195.74,23.776884]
[1736317431431,1.40017408,195.79,195.76,23.776884]
[1736317432021,6.2158,195.85,195.77,0.7659911]
[1736317432221,2.56,195.84,195.78,23.776884]
[1736317432423,2.56,195.84,195.8,23.776884]
[1736317432831,0.12549,195.83,195.76,23.776884]
[1736317433049,0.12549,195.83,195.78,23.776884]
[1736317433929,0.12549,195.83,195.79,23.776884]
[1736317434150,7.8766,195.85,195.79,23.776884]
[1736317434636,0.12549,195.84,195.79,23.776884]
[1736317436226,0.12549,195.84,195.8,0.76586206]
[1736317436431,0.12549,195.84,195.81,23.776884]
[1736317436732,0.12549,195.84,195.77,23.776884]
[1736317436934,0.12549,195.84,195.79,23.776884]
[1736317437433,0.12549,195.84,195.75,23.776884]
[1736317437651,0.12549,195.84,195.77,23.776884]
[1736317438553,0.12549,195.84,195.78,0.76591662]
[1736317438753,0.12549,195.84,195.75,23.776884]
[1736317439054,0.12549,195.84,195.77,23.776884]
[1736317439355,1.6608,195.85,195.79,23.776884]
[1736317439561,1.6608,195.85,195.81,23.776884]
[1736317439736,0.12549,195.84,195.75,0.76582942]
[1736317440547,0.12549,195.84,195.76,23.776884]
[1736317440756,0.12549,195.84,195.78,23.776884]
[1736317441532,0.12549,195.84,195.74,23.776884]
[1736317441731,0.12549,195.84,195.76,23.776884]
[1736317442032,0.12549,195.84,195.78,23.776884]
[1736317442232,1.6608,195.85,195.8,23.776884]
[1736317442457,0.12549,195.84,195.8,23.776884]
[1736317442664,0.12549,195.84,195.76,0.76581942]
[1736317442831,0.12549,195.84,195.77,23.776884]
[1736317443030,0.12549,195.84,195.79,23.776884]
[1736317443455,0.12549,195.84,195.75,23.776884]
[1736317443769,0.12549,195.84,195.74,24.54274872]
[1736317443770,0.12549,195.84,195.77,23.776884]
[1736317444063,0.12549,195.84,195.79,23.776884]
[1736317444230,0.12549,195.84,195.81,23.776884]
[1736317444751,0.12549,195.84,195.75,23.776884]
[1736317445045,0.12549,195.84,195.76,0.76589583]
[1736317445643,0.12549,195.84,195.71,30.45361222]
[1736317445644,0.12549,195.84,195.73,0.76592198]
[1736317446348,0.12549,195.84,195.74,23.776884]
[1736317446550,0.12549,195.84,195.75,0.76599666]
[1736317447243,0.12549,195.84,195.76,23.776884]
[1736317449361,0.12549,195.84,195.78,23.776884]
[1736317449546,2.68549,195.84,195.8,23.776884]
[1736317450053,2.68549,195.84,195.72,30.99879188]
[1736317450054,2.68549,195.84,195.74,23.776884]
[1736317450249,2.68549,195.84,195.76,23.776884]
[1736317450451,2.68549,195.84,195.78,23.776884]
[1736317450758,0.12549,195.84,195.8,23.776884]
[1736317451543,0.12549,195.84,195.74,0.7658811]
[1736317452153,0.12549,195.84,195.72,23.776884]
[1736317452370,0.12549,195.84,195.74,23.776884]
[1736317453248,0.12549,195.84,195.74,0.7660193]
[1736317456375,2.48,195.83,195.74,0.7660193]
[1736317456757,0.12549,195.84,195.74,0.7660193]
[1736317457068,2.60549,195.84,195.74,0.7660193]
[1736317457566,0.12549,195.84,195.75,23.776884]
[1736317457774,0.12549,195.84,195.76,0.76584109]
[1736317458364,0.12549,195.84,195.77,23.776884]
[1736317458574,0.12549,195.84,195.79,23.776884]
[1736317459264,0.12549,195.84,195.81,23.776884]
[1736317459772,1.6608,195.85,195.81,23.776884]
[1736317460069,2.48,195.89,195.81,23.776884]
[1736317460275,7.7997,195.9,195.83,23.776884]
[1736317460470,7.7997,195.9,195.85,23.776884]
[1736317460778,0.12549,195.89,195.8,20.76560268]
[1736317461077,0.12549,195.89,195.81,23.776884]
[1736317461368,0.12549,195.89,195.83,23.776884]
[1736317461745,0.12549,195.89,195.81,23.776884]
[1736317461951,0.12549,195.89,195.81,24.54262579]
[1736317462379,0.12549,195.89,195.78,0.76574914]
[1736317462749,0.12549,195.89,195.79,23.776884]
[1736317462947,0.12549,195.89,195.81,23.776884]
[1736317464168,0.12549,195.89,195.83,23.776884]
[1736317464375,0.12549,195.89,195.85,23.776884]
[1736317464747,0.12549,195.89,195.79,0.76569707]
[1736317465168,0.12549,195.89,195.8,23.776884]
[1736317467470,1.5776,195.95,195.84,23.776884]
[1736317467857,0.12549,195.93,195.82,0.76553027]
[1736317468386,2.60549,195.93,195.83,23.776884]
[1736317468684,0.12549,195.91,195.8,0.76568417]
[1736317469369,0.12549,195.91,195.81,23.776884]
[1736317469758,0.12549,195.91,195.81,0.76574227]
[1736317469961,0.12549,195.92,195.81,0.76574227]
[1736317470781,0.12549,195.92,195.81,24.54262627]
[1736317471085,1.5776,195.95,195.87,23.776884]
[1736317471381,1.5776,195.95,195.89,23.776884]
[1736317471575,1.5776,195.95,195.91,23.776884]
[1736317471875,2.48,196.0,195.93,23.776884]
[1736317472082,0.12549,195.99,195.93,23.776884]
[1736317472673,1.6228,196.01,195.93,23.776884]
[1736317472881,1.6228,196.01,195.95,23.776884]
[1736317473260,1.6228,196.01,195.97,23.776884]
[1736317473449,1.5537,196.06,195.99,23.776884]
[1736317473653,6.0929,196.07,196.01,23.776884]
[1736317473654,20.0,196.07,196.01,23.776884]
[1736317473858,2.48,196.1,196.01,23.776884]
[1736317474056,2.48,196.1,195.92,24.3227]
[1736317474057,2.48,196.1,196.03,23.776884]
[1736317474280,20.0,196.09,196.03,23.776884]
[1736317474459,0.12549,196.08,196.03,23.776884]
[1736317474959,4.0337,196.11,196.03,23.776884]
[1736317475164,1.5537,196.11,196.05,23.776884]
[1736317475680,0.12549,196.1,196.05,23.776884]
[1736317475854,0.12549,196.1,196.0,0.76488423]
[1736317476055,20.12549,196.1,196.0,0.76488423]
[1736317476500,20.62549,196.1,195.99,0.76496048]
[1736317476788,20.62549,196.1,196.0,23.776884]
[1736317476985,20.12549,196.1,196.02,23.776884]
[1736317477355,20.12549,196.1,195.99,23.776884]
[1736317477568,20.12549,196.1,196.0,0.76500581]
[1736317478068,20.12549,196.1,195.97,0.76500587]
[1736317478069,20.62549,196.1,195.97,0.76500587]
[1736317478485,20.62549,196.1,195.98,23.776884]
[1736317478792,20.62549,196.1,195.99,0.7650571]
[1736317478999,20.12549,196.1,195.99,0.7650571]
[1736317479689,20.12549,196.1,196.01,23.776884]
[1736317479895,0.12549,196.1,196.03,23.776884]
[1736317480096,0.12549,196.1,196.05,23.776884]
[1736317480601,0.12549,196.1,196.01,23.776884]
[1736317480793,0.12549,196.1,196.03,23.776884]
[1736317481798,20.12549,196.1,196.03,23.776884]
[1736317482003,20.12549,196.1,195.97,0.76495321]
[1736317482178,20.12549,196.1,195.98,23.776884]
[1736317482488,20.12549,196.1,196.0,23.776884]
[1736317482690,0.12549,196.08,195.95,0.76498791]
[1736317483198,0.12549,196.08,195.96,23.776884]
[1736317483406,0.12549,196.08,195.93,0.76514028]
[1736317483774,0.12549,196.07,195.94,23.776884]
[1736317484011,0.12549,196.03,195.94,23.776884]
[1736317484316,0.12549,196.03,195.93,0.76514028]
[1736317484612,0.12549,196.03,195.94,0.76526011]
[1736317485504,0.12549,196.03,195.93,23.776884]
[1736317485684,0.12549,196.03,195.96,23.776884]
[1736317486597,0.12549,196.03,195.93,23.776884]
[1736317486916,0.12549,196.03,195.94,0.76523693]
[1736317487986,0.12549,196.03,195.96,23.776884]
[1736317488481,0.12549,196.03,195.95,0.7652682]
[1736317489411,0.12549,196.03,195.93,23.776884]
[1736317489609,0.12549,196.03,195.94,0.7652233]
[1736317490107,0.12549,196.03,195.95,23.776884]
[1736317490298,0.12549,196.03,195.96,0.76514436]
[1736317491295,0.12549,196.03,195.97,23.776884]
[1736317491490,0.12549,196.03,195.92,0.76514643]
[1736317491692,0.12549,196.03,195.93,23.776884]
[1736317492211,0.12549,196.03,195.95,23.776884]
[1736317492408,0.12549,196.03,195.93,0.76526496]
[1736317494089,0.12549,196.03,195.94,23.776884]
[1736317495586,0.12549,196.0,195.93,0.76526496]
[1736317495786,2.58549,196.0,195.89,0.76527126]
[1736317496009,0.12549,195.94,195.86,0.76546115]
[1736317496307,0.12549,195.94,195.83,0.76556297]
[1736317496512,0.12549,195.93,195.82,20.0]
[1736317496689,0.12549,195.93,195.83,24.54257403]
[1736317496884,0.12549,195.93,195.82,20.0]
[1736317497092,0.12549,195.91,195.82,23.776884]
[1736317497294,0.12549,195.91,195.8,0.76572314]
[1736317497295,0.12549,195.89,195.8,0.76572314]
[1736317497692,0.12549,195.89,195.81,23.776884]
[1736317498209,0.12549,195.89,195.8,23.776884]
[1736317499320,1.591,195.9,195.81,16.41326037]
[1736317499699,0.12549,195.89,195.8,0.76575124]
[1736317500429,0.62549,195.89,195.78,0.76579351]
[1736317500601,0.12549,195.87,195.76,0.76588688]
[1736317500785,0.12549,195.84,195.75,0.76594298]
[1736317501325,0.12549,195.84,195.76,23.776884]
[1736317501528,0.12549,195.84,195.75,0.76594298]
[1736317501918,0.12549,195.84,195.76,23.776884]
[1736317502291,0.5,195.83,195.73,0.76601475]
[1736317502490,1.71049,195.82,195.71,0.76601475]
[1736317502788,1.71049,195.82,195.72,23.776884]
[1736317502990,1.71049,195.82,195.74,23.776884]
[1736317503385,1.585,195.82,195.76,23.776884]
[1736317503614,1.585,195.82,195.71,16.41337466]
[1736317503798,0.12549,195.81,195.71,16.41337466]
[1736317504103,0.12549,195.81,195.72,23.776884]
[1736317504312,0.12549,195.81,195.74,23.776884]
[1736317504708,0.12549,195.81,195.76,23.776884]
[1736317505114,0.12549,195.81,195.74,23.776884]
[1736317505811,0.62549,195.81,195.69,0.76608102]
[1736317506287,0.62549,195.81,195.7,23.776884]
[1736317506487,0.12549,195.81,195.72,23.776884]
[1736317506689,0.12549,195.81,195.7,0.7661257]
[1736317506690,0.62549,195.81,195.7,0.7661257]
[1736317506908,0.12549,195.76,195.69,23.776884]
[1736317507115,0.12549,195.76,195.67,0.76619646]
[1736317507312,0.12549,195.76,195.65,0.76631932]
[1736317507313,0.62549,195.76,195.65,0.76631932]
[1736317507615,0.12549,195.74,195.66,23.776884]
[1736317507813,0.12549,195.74,195.67,0.76631234]
[1736317508017,1.6317,195.75,195.68,23.776884]
[1736317508211,1.6317,195.75,195.69,0.76622745]
[1736317508413,1.6317,195.75,195.7,23.776884]
[1736317508612,1.6317,195.75,195.72,23.776884]
[1736317508816,0.12549,195.77,195.72,23.776884]
[1736317509117,10.4429,195.8,195.69,16.41360536]
[1736317509411,0.12549,195.79,195.7,23.776884]
[1736317509615,0.12549,195.79,195.72,23.776884]
[1736317510402,0.12549,195.79,195.71,23.776884]
[1736317511031,0.12549,195.79,195.69,0.76620383]
[1736317511198,0.12549,195.76,195.64,15.64746436]
[1736317511398,0.12549,195.74,195.65,0.76636501]
[1736317511827,0.12549,195.74,195.66,23.776884]
[1736317512130,0.12549,195.74,195.63,0.76642725]
[1736317512307,0.12549,195.72,195.63,0.76642725]
[1736317512495,0.12549,195.7,195.61,0.76648815]
[1736317512816,0.12549,195.7,195.62,23.776884]
[1736317513201,0.12549,195.7,195.61,0.76648815]
[1736317513406,0.62549,195.7,195.59,0.76658957]
[1736317513914,0.12549,195.7,195.59,16.41405393]
[1736317514114,0.5,195.78,195.63,15.64746436]
[1736317514423,0.12549,195.77,195.64,23.776884]
[1736317514717,0.12549,195.73,195.61,3.22635698]
[1736317514919,0.12549,195.73,195.62,23.776884]
[1736317515095,0.12549,195.73,195.64,23.776884]
[1736317515416,0.12549,195.73,195.61,3.22646855]
[1736317515790,20.62549,195.75,195.62,23.776884]
[1736317516397,0.62549,195.75,195.62,23.776884]
[1736317516606,0.12549,195.73,195.61,23.776884]
[1736317516811,0.62549,195.73,195.61,23.776884]
[1736317517319,20.0,195.71,195.6,0.76655347]
[1736317517521,0.12549,195.67,195.58,0.76657065]
[1736317517702,0.12549,195.67,195.6,20.0]
[1736317517905,0.12549,195.67,195.58,0.76657065]
[1736317518100,0.12549,195.67,195.57,20.0]
[1736317518513,0.12549,195.65,195.57,20.0]
[1736317518820,0.12549,195.65,195.58,23.776884]
[1736317519200,0.12549,195.65,195.57,20.0]
[1736317519750,0.12549,195.65,195.58,0.76680823]
[1736317519908,0.12549,195.65,195.57,20.0]
[1736317520341,0.12549,195.65,195.59,23.776884]
[1736317520837,0.12549,195.65,195.58,0.76670505]
[1736317521002,0.12549,195.65,195.59,23.776884]
[1736317521410,0.12549,195.65,195.58,0.76670505]
[1736317521640,0.12549,195.65,195.57,20.0]
[1736317521933,0.12549,195.65,195.58,23.776884]
[1736317522138,0.62549,195.65,195.57,20.0]
[1736317522344,0.12549,195.65,195.58,23.776884]
[1736317523302,3.9851,195.68,195.58,40.19108641]
[1736317523506,0.12549,195.67,195.58,40.19108641]
[1736317523719,0.12549,195.67,195.58,23.776884]
[1736317524008,0.12549,195.65,195.58,23.776884]
[1736317524932,0.12549,195.65,195.57,20.0]
[1736317525239,24.4851,195.68,195.57,20.0]
[1736317525409,24.4851,195.68,195.58,23.776884]
[1736317526106,0.12549,195.67,195.58,23.776884]
[1736317528224,0.12549,195.67,195.59,16.41411363]
[1736317528525,0.12549,195.67,195.59,0.76664927]
[1736317528727,0.12549,195.67,195.59,16.41411363]
[1736317529428,0.12549,195.67,195.6,23.776884]